Cogmind - Beta 15 @@@ ROGUE MODE // 2025.09.12 @ 22:23:42 Player: lite Result: Destroyed by D-53 Grenadier with Mini Grenade Launcher Performance ------------- Evolutions (0) 0 Regions Visited (2) 400 Robots Destroyed (15) 75 Value Destroyed (361) 361 Prototype IDs (2) 40 Alien Tech Used (0) 0 Bonus (0) 0 TOTAL SCORE: 876 Bonus ------- None Cogmind --------- Core Integrity 0/250 Matter 266/300 Energy 250/250 System Corruption 0% Temperature Cool (0) Movement Treading (240) Ox1 Location -10/Mines Parts ------- > --- POWER (1) -------- Ion Engine > --- PROPULSION (2) --- Light Treads Light Treads > --- UTILITY (2) ------ Heat Sink High-capacity Storage Unit > --- WEAPON (2) ------- Light Cannon > --- INVENTORY (20) --- Ion Engine Ion Engine Aluminum Leg Aluminum Leg Heat Sink Improved Heat Sink Huge Storage Unit Medium Matter Pod (0) Signal Interpreter Small Laser Peak State ------------ > --- POWER ------------ Ion Engine > --- PROPULSION ------- Wheel Compact Wheel > --- UTILITY ---------- Heat Sink High-capacity Storage Unit > --- WEAPON ----------- Small Laser Assault Rifle > --- INVENTORY -------- Ion Engine Light Treads Light Treads Aluminum Leg Aluminum Leg Improved Heat Sink Huge Storage Unit Small Laser [Rating: 8] Favorites ----------- Power Ion Engine Engine Ion Engine Propulsion Wheel Treads Light Treads Wheel Wheel Utility High-capacity Storage Unit Device Heat Sink Storage High-capacity Storage Unit Processor Targeting Computer Protection Light Armor Plating Weapon Small Laser Energy Gun Small Laser Ballistic Gun Assault Rifle Ballistic Cannon Light Cannon Build | -11 -10 -10 ------- Run | Yrd Mat Min Slots Evolved . | . . . Power . | . . . Propulsion . | . . . Utility . | . . . Weapon . | . . . Parts Attached 16 | 6 9 1 Power 2 | 1 1 . Engine 2 | 1 1 . Core . | . . . Reactor . | . . . Propulsion 5 | 2 3 . Treads 2 | . 2 . Leg . | . . . Wheel 3 | 2 1 . Hover . | . . . Flight . | . . . Utility 6 | 1 5 . Device 2 | . 2 . Storage 2 | 1 1 . Processor 1 | . 1 . Hackware . | . . . Protection 1 | . 1 . Artifact . | . . . Weapon 3 | 2 . 1 Energy Gun 1 | 1 . . Energy Cannon . | . . . Ballistic Gun 1 | 1 . . Ballistic Cannon 1 | . . 1 Launcher . | . . . Special Weapon . | . . . Impact Weapon . | . . . Slashing Weapon . | . . . Piercing Weapon . | . . . Special Melee Weapon . | . . . Unidentified Prototypes . | . . . Parts Lost 7 | . 4 3 Power . | . . . Propulsion 3 | . 2 1 Utility 2 | . 2 . Weapon 2 | . . 2 Highest Loss Streak 3 | . 2 3 To Critical Strikes . | . . . Average Backups 8 | 3 8 12 Power 1 | . 1 2 Propulsion 3 | 2 4 3 Utility 2 | . 2 5 Weapon 1 | . 1 2 Tool/Special . | . . . Unused Backups 8 | . . 8 Power 1 | . . 1 Propulsion 2 | . . 2 Utility 4 | . . 4 Weapon 1 | . . 1 Tool/Special . | . . . Average Slot Usage (%) 97 | . 97 98 Engine 14 | . 14 14 Treads 7 | . 5 15 Wheel 20 | . 21 12 Device 9 | . 8 14 Storage 14 | . 14 14 Protection 2 | . 2 . Energy Gun 13 | . 14 12 Ballistic Gun 13 | . 14 12 Peak Build Rating 8 | 6 8 8 Average Rating 7 | 4 7 7 On Entrance 4 | . 6 8 Naked Turns . | . . . Heaviest Build 51 | 13 51 49 Greatest Support 40 | 20 26 40 Greatest Overweight (x) 4 | 1 4 4 Average Overweight (x) 2 | . 1 3 Largest Inventory Capacity 20 | 8 20 20 Average Capacity 18 | 7 18 20 Most Carried 12 | 6 12 12 Average Carried 8 | 3 8 11 Final Capacity 20 | 8 20 20 Final Carried 12 | 6 12 10 Class Distribution -------------------- 100% | Mutant Dominant Class ---------------- Mutant | -10/Materials Mutant | -10/Mines Resources | -11 -10 -10 ----------- Run | Yrd Mat Min Matter Collected 484 | 219 265 . Remotely . | . . . Salvage Created 470 | . 470 . Parts 33 | . 33 . Haulers Intercepted . | . . . Recyclers Shooed . | . . . Parts Field Recycled . | . . . Retrieved Matter . | . . . Parts Self-Destructed . | . . . Prevented . | . . . Kills | -11 -10 -10 ------- Run | Yrd Mat Min Combat Hostiles Destroyed 14 | . 14 . Guns 14 | . 14 . Classes Destroyed 3 | . 3 . Watcher 1 | . 1 . Swarmer 6 | . 6 . Grunt 8 | . 8 . Best Kill Streak 4 | . 4 . Combat Bots Only 4 | . 4 . Max Kills in Single Turn 2 | . 2 . Gunslinging 1 | . 1 . Exploded . | . . . Melee . | . . . Uniques/NPCs Destroyed . | . . . Combat | -11 -10 -10 -------- Run | Yrd Mat Min Hostile Shots Fired 81 | . 73 8 Missed 20 | . 20 . Hits 61 | . 53 8 Projectile 61 | . 53 8 AOE 12 | . . 12 Critical Strikes 2 | . 2 . Damage Taken 1052 | . 597 455 Core 270 | . 149 121 Absorbed by Shields . | . . . Core Remaining (%) 100 | 100 . . Volleys Fired 50 | . 48 2 Largest 2 | . 2 2 Hottest 60 | . 60 50 Shots Fired 96 | . 92 4 Gun 94 | . 92 2 Cannon 2 | . . 2 Launcher . | . . . Special . | . . . Kinetic 52 | . 48 4 Thermal 44 | . 44 . Explosive . | . . . Electromagnetic . | . . . Robot Hit Streak 7 | . 7 2 Robot Miss Streak 5 | . 5 3 Penetration Max . | . . . Secondary Targets 1 | . 1 . Max Gunslinging Chain 1 | . 1 . Shots Hit Robots 48 | . 47 1 Core Hits 26 | . 25 1 Critical Kills . | . . . Critical Parts Destroyed 1 | . 1 . Critical Strikes 1 | . 1 . Destroy 1 | . 1 . Melee Attacks . | . . . Impact . | . . . Slashing . | . . . Piercing . | . . . Sneak Attacks . | . . . Combat Hostiles . | . . . Follow-up Attacks . | . . . Damage Inflicted 583 | . 551 32 Guns 566 | . 551 15 Cannons 17 | . . 17 Explosions . | . . . Melee . | . . . Ramming . | . . . Kinetic 402 | . 370 32 Thermal 181 | . 181 . Explosive . | . . . Electromagnetic . | . . . Impact . | . . . Slashing . | . . . Piercing . | . . . Highest Corruption . | . . . Average Corruption . | . . . Corruption Purged . | . . . Corruption Blocked . | . . . Overload Shots . | . . . Overflow Damage . | . . . Projectiles . | . . . Explosions . | . . . Melee . | . . . Knockbacks . | . . . Impact . | . . . Kinetic . | . . . Secondary . | . . . Self-Inflicted Damage . | . . . Shots . | . . . Rammed . | . . . Targets Rammed . | . . . Kicked . | . . . Crushed . | . . . Highest Temperature 99 | . 99 . Average Temperature 29 | . 29 . Received Heat Transfer 312 | . 312 . Siege Activations . | . . . Martial Activations . | . . . Shielding Activations . | . . . Robots Disrupted . | . . . Combat Hostiles . | . . . Robots Corrupted . | . . . Combat Hostiles . | . . . Parts Fried . | . . . Impact Corruptions . | . . . Robots Melted . | . . . Combat Hostiles . | . . . Parts Melted . | . . . Heat Transferred 425 | . 425 . Parts Sabotaged . | . . . Parts Stolen . | . . . Parts Stripped . | . . . Power Chain Reactions . | . . . Alert | -11 -10 -10 ------- Run | Yrd Mat Min Maximum Alert Level . | . . . Low Security (%) 100 | 100 100 100 Level 1 . | . . . Level 2 . | . . . Level 3 . | . . . Level 4 . | . . . Level 5 . | . . . High Security . | . . . Max Security . | . . . Peak Influence 163 | . 163 34 Initial 34 | . . 34 Average 59 | . 72 14 Influence Increases 364 | . 364 . Destroy 0b10 Robot/C 280 | . 280 . Destroy 0b10 Robot/NC 5 | . 5 . Destroy Leader 62 | . 62 . Destroy Structure 2 | . 2 . Lose Combat Pursuer 15 | . 15 . Influence Decreases 364 | . 274 90 Entered New Map 56 | . . 56 Time Decay 268 | . 234 34 Lost Part 40 | . 40 . Squads Dispatched 3 | . 3 . Investigation 2 | . 2 . Extermination . | . . . Reinforcement 1 | . 1 . Assault . | . . . Garrison . | . . . Intercept . | . . . Searches Triggered . | . . . Construction Impeded . | . . . Haulers Reinforced . | . . . Active Scanning Responses . | . . . Cargo Convoy Interrupts . | . . . Stealth | -11 -10 -10 --------- Run | Yrd Mat Min Distress Signals 1 | . 1 . Communications Jammed . | . . . Distress Signals . | . . . Times Spotted 23 | . 21 2 Peak Tracking Total 4 | . 4 2 Tactical Retreats 1 | . 1 . Traps | -11 -10 -10 ------- Run | Yrd Mat Min Traps Triggered 1 | . 1 . Indirectly . | . . . Trap Hack Attempts . | . . . Triggered . | . . . Disarmed . | . . . Reprogrammed . | . . . Reused . | . . . Traps Extracted . | . . . Installed . | . . . Triggered . | . . . Machines | -11 -10 -10 ---------- Run | Yrd Mat Min Machines Disabled . | . . . Max in Single Turn . | . . . Machines Repaired . | . . . Machines Dismantled . | . . . Machines Sabotaged . | . . . Overloaded Fab Kills . | . . . Hacking | -11 -10 -10 --------- Run | Yrd Mat Min Machines Accessed 5 | . 5 . Terminals 5 | . 5 . Fabricators . | . . . Repair Stations . | . . . Recycling Units . | . . . Scanalyzers . | . . . Garrison Access . | . . . Total Hacks 11 | . 11 . Successful 4 | . 4 . Failed 7 | . 7 . Catastrophic 1 | . 1 . Database Lockouts . | . . . Manual 4 | . 4 . Terminals 11 | . 11 . Fabricators . | . . . Repair Stations . | . . . Recycling Units . | . . . Scanalyzers . | . . . Garrison Access . | . . . Terminal Hacks 4 | . 4 . Prototype ID Bank 1 | . 1 . Locate Traps 2 | . 2 . Hauler Manifests 1 | . 1 . Fabricator Hacks . | . . . Repair Station Hacks . | . . . Recycling Unit Hacks . | . . . Scanalyzer . | . . . Garrison Access Hacks . | . . . Unauthorized Hacks . | . . . Terminals . | . . . Fabricators . | . . . Repair Stations . | . . . Recycling Units . | . . . Scanalyzers . | . . . Garrison Access . | . . . Data Cores Recovered . | . . . Used . | . . . Hacking Detections 4 | . 4 . Full Trace Events 1 | . 1 . Feedback Events . | . . . Feedback Blocked . | . . . Robot Schematics Acquired . | . . . Robots Built . | . . . Authchips . | . . . Time . | . . . Total Robot Build Rating . | . . . Part Schematics Acquired . | . . . Parts Built . | . . . Authchips . | . . . Time . | . . . Total Part Build Rating . | . . . Parts Repaired . | . . . Time . | . . . Parts Recycled . | . . . Recycled Matter . | . . . Retrieved Matter . | . . . Retrieved Components . | . . . Parts Scanalyzed . | . . . Part Schematics Acquired . | . . . Parts Damaged . | . . . Bothacking | -11 -10 -10 ------------ Run | Yrd Mat Min Used RIF Installer . | . . . Robots Hacked . | . . . Non-combat . | . . . Combat . | . . . Robot Hacks Applied . | . . . Relay Couplers Released . | . . . Fabnet Peak Effective % . | . . . Robots Rewired . | . . . Allies Hacked . | . . . Hacks Repelled . | . . . Allies | -11 -10 -10 -------- Run | Yrd Mat Min Total Allies . | . . . Largest Group . | . . . Highest-Rated Group . | . . . Highest-Rated Ally . | . . . Total Orders . | . . . Ally Attacks . | . . . Total Damage . | . . . Kills . | . . . Allies Corrupted . | . . . Allies Melted . | . . . Intel | -11 -10 -10 ------- Run | Yrd Mat Min Active Infowar (turns) 92 | . 92 . Sensors 92 | . 92 . Robot Analysis Total . | . . . Derelict Logs Recovered 1 | . . 1 Drone Launches . | . . . Drone Recoveries . | . . . Exploration | -11 -10 -10 ------------- Run | Yrd Mat Min Turns Passed 801 | 54 641 106 Spaces Moved 527 | 53 405 69 Core 15 | 15 . . Treads 1 | . . 1 Legs . | . . . Wheels 511 | 38 405 68 Hover . | . . . Flight . | . . . Fastest Speed 50 | 50 80 140 Average Speed 113 | 74 114 141 Slowest Speed 240 | 100 145 240 Overloaded Moves . | . . . Propulsion Burnouts . | . . . Robots Hopped . | . . . Potential Cave-ins . | . . . Cave-ins Triggered . | . . . Exploration Rate (%) 30 | 4 69 19 Regions Visited 2 Branch Regions 1 Pre-discovered Areas . | . . . Known Exits Taken . | . . . Unknown Exits Taken 2 | 1 1 . Scrap Searched . | . . . Spaces Dug . | . . . Terrain Destroyed . | . . . Melee . | . . . Projectile . | . . . AOE . | . . . Terrain Rammed . | . . . Walls Destroyed . | . . . Machines Disabled . | . . . Actions | -11 -10 -10 --------- Run | Yrd Mat Min Total 626 | 64 489 73 Wait 14 | . 14 . Move 525 | 52 404 69 Hop . | . . . Pick Up 15 | 6 9 . Fast Attach 8 | 6 2 . Attach 7 | . 5 2 Detach 2 | . 2 . Swap 4 | . 4 . Drop 1 | . 1 . Fire 50 | . 48 2 Melee . | . . . Ram . | . . . Kick . | . . . Crush . | . . . Escape Stasis . | . . . Rewire . | . . . Trap . | . . . Miscellaneous . | . . . Route ------- -11/Scrapyard -10/Materials (discovered 2 exits: [*Mat] / [*Min]) -10/Mines (discovered 1 exit: [*Exi]) History --------- Turn | Location | Event 21 | -11/Scrapyard | Discovered new exit (range 16) 55 | -11/Scrapyard | Entered Materials 250 | -10/Materials | Discovered new exit (range 13) 305 | -10/Materials | Build established: Mutant 393 | -10/Materials | Core integrity fell below 50% 587 | -10/Materials | Discovered new exit (range 12) 696 | -10/Materials | Entered Mines 715 | -10/Mines | Deemed a non-threat by the Exiles lab entrance 716 | -10/Mines | Discovered new exit (range 5) 767 | -10/Mines | Assembled infested the area 772 | -10/Mines | Assisted by a Guerilla fighting off Assembled 801 | -10/Mines | Core integrity fell below 20% 802 | -10/Mines | Destroyed by D-53 Grenadier with Mini Grenade Launcher Last Messages --------------- 00715_ "No threat detected, you may enter." 00716_ EXIT=FOUND 00767_ ALERT: Infestation in the mines, dispatching Demolisher response squad. 00772_ A derelict emerges from the shadows: "You need to get out of here! I've been tracking a group of Assembled to figure out where they're coming from, and they're closing on this area, come on!" 00791_ C-30 ARC bursts open, deploying its payload. 00791_ D-53 Grenadier unfolds itself. 00791_ Sml. Laser destroyed. 00791_ JP-5LU(h): "I'll hold them off! Go on ahead or try to find another way!" 00791_ HV Slug penetrates Wall. 00791_ HV Slug penetrates D-53 Grenadier. 00792_ Wheel destroyed. 00793_ The unstable cave ceiling collapses. 00793_ HV Slug penetrates Wall. 00795_ JP-5LU(h) destroyed. 00799_ Assault Rifle destroyed. 00801_ Laser Drill disabled. Map ----- +----------------------------------------------------+ | ?????????????????????????????????????????????? | | ?????????????????????????????????????????????? | | ?????????????????????????????????????????????? | | ?????????????????????????????????????????????? | | ?????????????????????????????????????????????? | | ?????????????????????????????????????????????? | | ?????????????????????????????????????????????? | | ?????????????????????????????????????????????? | | ?????????????????????????????????????????????? | | ?????????????????????????????????????????????? | | ?????????????????????????????????????????????? | | ?????????????????????????????????????????????? | | ??????????????????????????#??????????????????? | | ?????????? ?????###??????? ??????????????????? | | ?????????? ???#; #????? #??????????????????? | | ?????????? #?## ?????$#??????????????????? | | ??????????? ## %##### #??????????????????? | | ????????????# % r ???????????????????? | | ?????????????# dd ##??????????????????? | | ??????????????# u #??????????????????? | | ??????????????# #??????????????????? | | ???????????????# #??????????????????? | | ???????????????# #??????????????????? | | ???????????????# #??????????????????? | | ???????????????# ##?????????????????? | | ???????????????## @ ##????????????????? | | ????????????????# #????????????????? | | ????????????????# #????????????????? | | ????????????????### "" #????????????????? | | ??????????????????## """ #????????????????? | | ?????????????????## """ #????????????????? | | ????????????????## #????????????????? | | ???????????????## #????????????????? | | ???????????????# #????????????????? | | ???????????????# ##????????????????? | | ???????????????## ##??????????????###? | | ????????????????## #??????????????? #? | | ?????????????????## #???????????????# #? | | ??????????????????###### #???????????????# #? | | ???????????????????????# #############???# #? | | ???????????????????????# #???# ## | | ???????????????????????## ########### ##### ## | | ????????????????????????# #?????????# | | ????????????????????????# #?????????##### #### | | ????????????????????????# #?????????????# #??# | | ???????????????????????? #?????????????# #??? | | ????????????????????????###?????????????# #??? | | ????????????????????????????????????????# ###? | | ????????????????????????????????????????# ## | | ????????????????????????????????????????### # | +----------------------------------------------------+ Best States ------------- Heat Dissipation 35 Energy Generation 10 Energy Capacity 250 Matter Stores 300 Matter Capacity 300 Sight Range 16 Robot Scan Range 14 Terrain Scan Density 10 Armor Coverage 150 Evasion (%) 50 Targeting Accuracy 5 Recoil Reduction 2 Item Schematics ----------------- None Robot Schematics ------------------ None Fabricated ------------ Nothing Repaired ---------- Nothing Alien Tech Used ----------------- None Achievements -------------- None Challenges ------------ None Game ------ Seed ThermalCompactWarhead Manual? 0 Play Time 00:15:16 Cumulative 36.9 hours Start 2025.09.12 @ 22:05:27 End 2025.09.12 @ 22:23:42 Sessions 1 Manual Loads 0 Difficulty Rogue Special Mode None Game No. 7 Rogue 5 Adventurer 2 Explorer 0 Win Type - Total 0 Types 0/0/0/0/0/0/0/0/0/0 Lore% 9 Gallery% 21 Achievement% 20 Wizard Run 0 Options --------- Layout 0 ASCII 0 Keyboard 1 Movement Vi Keybinds 0 Fullscreen 2 Font 24/Tamsyn Map View 76x50 Zoom Use 0% Tactical HUD 1 Map Filters NONE Filters NONE Steam 1 RUN: fba99776-2360-4262-a12e-5ca9d2d11b70